[Event "World Senior chT-50 2019"]
[Site "Rhodes"]
[Date "2019.04.21"]
[Round "6.33"]
[White "Priedite, Ingrida"]
[Black "Grant, Jonathan I M"]
[Result "0-1"]
[ECO "A23"]
[WhiteElo "2044"]
[BlackElo "2226"]
[Annotator "NA"]
[PlyCount "166"]
[EventDate "2019.04.16"]
[EventType "team-tourn"]
[EventCountry "GRE"]
[SourceTitle "playchess.com"]
[Source "ChessBase"]
[SourceQuality "1"]
[WhiteTeam "Latvia"]
[BlackTeam "Scotland"]
[WhiteTeamCountry "LAT"]
[BlackTeamCountry "SCO"]
[TimeControl "40/5400+30:1800+30"]

1. c4 {[%emt 0:00:00]} Nf6 {[%emt 0:01:40]} 2. Nc3 {[%emt 0:00:00]} c5 {[%emt 0:00:10]} 3. g3 {[%emt 0:00:47]} e6 {[%emt 0:00:18]} 4. Bg2 {[%emt 0:01:05]} d5 {[%emt 0:00:08]} 5. cxd5 {[%emt 0:00:41]} exd5 {[%emt 0:00:07]} 6. d4 {[%emt 0:02:23]} cxd4 {[%emt 0:00:05]} 7. Qxd4 {[%emt 0:00:05]} Nc6 {[%emt 0:00:08]} 8. Qa4 {[%emt 0:06:16]} d4 {[%emt 0:00:09]} 9. Ne4 {[%emt 0:02:15]} Bd7 {[%emt 0:14:01]} 10. Bg5 {[%emt 0:13:48]} Bb4+ {[%emt 0:00:09]} 11. Kf1 {[%emt 0:11:22]} Be7 {[%emt 0:00:08]} 12. Bxf6 {[%emt 0:00:47]} Bxf6 {[%emt 0:04:28]} 13. Nd6+ {[%emt 0:03:34]} Kf8 {[%emt 0:01:03]} 14. Rc1 {[%emt 0:11:34]} Qb6 {[%emt 0:05:54]} 15. Qb3 {[%emt 0:05:16]} Qxb3 {[%emt 0:04:25]} 16. axb3 {[%emt 0:00:06]} Rb8 {[%emt 0:00:43]} 17. f4 {[%emt 0:04:38]} Be7 {[%emt 0:05:26]} 18. Nc4 {[%emt 0:03:02]} g5 {[%emt 0:11:17]} 19. Nf3 {[%emt 0:02:25]} gxf4 {[%emt 0:01:39]} 20. gxf4 {[%emt 0:00:06]} Rc8 {[%emt 0:03:58]} 21. Nce5 {[%emt 0:02:59]} Nxe5 {[%emt 0:00:57]} 22. Rxc8+ {[%emt 0:00:07]} Bxc8 {[%emt 0:00:05]} 23. Nxe5 {[%emt 0:00:22]} Bb4 {[%emt 0:11:02]} 24. Bd5 {[%emt 0:02:23]} Rg8 {[%emt 0:06:10]} 25. Rg1 {[%emt 0:03:17]} Rxg1+ {[%emt 0:03:44]} 26. Kxg1 {[%emt 0:00:06]} f6 {[%emt 0:01:04]} 27. Nd3 {[%emt 0:00:25]} Bd2 {[%emt 0:01:13]} 28. Kf2 {[%emt 0:00:25]} b6 {[%emt 0:01:08]} 29. Kf3 {[%emt 0:01:29]} Be3 {[%emt 0:03:49]} 30. Nb4 {[%emt 0:11:45]} a5 {[%emt 0:05:52]} 31. Nc2 {[%emt 0:01:37]} Bc1 {[%emt 0:00:10]} 32. Nxd4 {[%emt 0:00:27]} Bxb2 {[%emt 0:00:33]} 33. Nb5 {[%emt 0:01:57]} Bd7 {[%emt 0:02:10]} 34. Bc4 {[%emt 0:06:01]} Bc6+ {[%emt 0:02:02]} 35. e4 {[%emt 0:00:11]} f5 {[%emt 0:04:31]} 36. Nd6 {[%emt 0:00:18]} fxe4+ {[%emt 0:00:44]} 37. Nxe4 {[%emt 0:00:09]} Bc1 {[%emt 0:00:42]} 38. Bd3 {[%emt 0:00:20]} b5 {[%emt 0:03:09]} 39. Kg4 {[%emt 0:01:32]} a4 {[%emt 0:02:05]} 40. bxa4 {[%emt 0:00:00]} bxa4 {[%emt 0:00:00]} 41. Nc3 {[%emt 0:02:29]} Kg7 {[%emt 0:03:03]} 42. Bc4 {[%emt 0:09:25]} Bd2 {[%emt 0:02:48]} 43. Nd5 {[%emt 0:02:44]} Be8 {[%emt 0:02:59]} 44. f5 {[%emt 0:06:30]} Bd7 {[%emt 0:06:15]} 45. Nb6 {[%emt 0:00:56]} Bc6 {[%emt 0:00:19]} 46. Nd5 {[%emt 0:00:28]} Bc1 {[%emt 0:01:38]} 47. f6+ {[%emt 0:05:26]} Kf8 {[%emt 0:00:07]} 48. Kf5 {[%emt 0:00:53]} Bd7+ {[%emt 0:06:27]} 49. Ke5 {[%emt 0:00:08]} Bb2+ {[%emt 0:01:45]} 50. Kd6 {[%emt 0:00:58]} Be8 {[%emt 0:04:38]} 51. Nb6 {[%emt 0:05:40]} Bxf6 {[%emt 0:01:28]} 52. Nxa4 {[%emt 0:00:55]} Bxa4 {[%emt 0:00:17]} 53. Ke6 {[%emt 0:00:26]} Kg7 {[%emt 0:00:25]} 54. Kf5 {[%emt 0:00:17]} Bd1 {[%emt 0:01:28]} 55. Bd5 {[%emt 0:00:40]} Bh4 {[%emt 0:00:54]} 56. Kf4 {[%emt 0:00:33]} Kf6 {[%emt 0:00:15]} 57. Bf3 {[%emt 0:00:33]} Bg5+ {[%emt 0:00:34]} 58. Kg3 {[%emt 0:00:14]} Bc2 {[%emt 0:00:07]} 59. h3 {[%emt 0:00:33]} Ke5 {[%emt 0:00:33]} 60. Kg2 {[%emt 0:00:33]} Kf4 {[%emt 0:00:20]} 61. h4 {[%emt 0:01:01]} Bxh4 {[%emt 0:00:19]} 62. Bc6 {[%emt 0:00:07]} Bg3 {[%emt 0:01:54]} 63. Bb7 {[%emt 0:00:12]} h5 {[%emt 0:00:11]} 64. Bc6 {[%emt 0:02:50]} Bd1 {[%emt 0:00:54]} 65. Bb7 {[%emt 0:00:12]} Be1 {[%emt 0:00:45]} 66. Bc6 {[%emt 0:00:32]} Be2 {[%emt 0:00:37]} 67. Bb7 {[%emt 0:00:11]} Ke3 {[%emt 0:00:38]} 68. Bc6 {[%emt 0:00:20]} h4 {[%emt 0:02:00]} 69. Bb7 {[%emt 0:00:24]} Bg3 {[%emt 0:00:11]} 70. Bc6 {[%emt 0:00:10]} Kd2 {[%emt 0:00:12]} 71. Bb7 {[%emt 0:01:01]} Ke1 {[%emt 0:00:40]} 72. Bc6 {[%emt 0:00:07]} Bf1+ {[%emt 0:01:10]} 73. Kg1 {[%emt 0:00:41]} Bh3 {[%emt 0:01:34]} 74. Bb7 {[%emt 0:00:10]} Ke2 {[%emt 0:00:53]} 75. Bc6 {[%emt 0:00:04]} Ke3 {[%emt 0:00:07]} 76. Bb7 {[%emt 0:00:07]} Be5 {[%emt 0:00:21]} 77. Bc6 {[%emt 0:01:08]} Kf4 {[%emt 0:00:19]} 78. Bb7 {[%emt 0:00:14]} Kg3 {[%emt 0:00:13]} 79. Bc6 {[%emt 0:00:17]} Bg4 {[%emt 0:00:54]} 80. Bb7 {[%emt 0:00:09]} h3 {[%emt 0:00:48]} 81. Bc6 {[%emt 0:00:28]} Be2 {[%emt 0:00:42]} 82. Bb7 {[%emt 0:00:12]} Bd4+ {[%emt 0:00:17]} 83. Kh1 {[%emt 0:00:13]} Bf1 {[%emt 0:00:10]} 0-1

[Event "World Senior chT-50 2019"]
[Site "Rhodes"]
[Date "2019.04.21"]
[Round "6.34"]
[White "Farrell, Neil"]
[Black "Goldmane, Astra"]
[Result "1-0"]
[ECO "A50"]
[WhiteElo "2132"]
[BlackElo "2020"]
[Annotator "NA"]
[PlyCount "58"]
[EventDate "2019.04.16"]
[EventType "team-tourn"]
[EventCountry "GRE"]
[SourceTitle "playchess.com"]
[Source "ChessBase"]
[SourceQuality "1"]
[WhiteTeam "Scotland"]
[BlackTeam "Latvia"]
[WhiteTeamCountry "SCO"]
[BlackTeamCountry "LAT"]
[TimeControl "40/5400+30:1800+30"]

1. d4 {[%emt 0:00:00]} Nf6 {[%emt 0:00:00]} 2. c4 {[%emt 0:00:04]} b6 {[%emt 0:00:19]} 3. Nc3 {[%emt 0:01:41]} Bb7 {[%emt 0:00:10]} 4. d5 {[%emt 0:03:04]} c6 {[%emt 0:01:50]} 5. Nf3 {[%emt 0:04:34]} g6 {[%emt 0:10:42]} 6. e4 {[%emt 0:02:00]} d6 {[%emt 0:00:24]} 7. Be2 {[%emt 0:05:23]} Bg7 {[%emt 0:00:44]} 8. O-O {[%emt 0:00:18]} O-O {[%emt 0:00:26]} 9. Re1 {[%emt 0:05:45]} Nbd7 {[%emt 0:06:32]} 10. h3 {[%emt 0:14:38]} a6 {[%emt 0:12:08]} 11. Nd4 {[%emt 0:07:32]} c5 {[%emt 0:02:15]} 12. Nc2 {[%emt 0:01:12]} Ne8 {[%emt 0:05:58]} 13. Bg5 {[%emt 0:01:06]} h6 {[%emt 0:01:10]} 14. Bh4 {[%emt 0:01:04]} g5 {[%emt 0:02:45]} 15. Bg3 {[%emt 0:01:28]} Ne5 {[%emt 0:02:53]} 16. Ne3 {[%emt 0:06:00]} e6 {[%emt 0:01:45]} 17. Bh2 {[%emt 0:04:12]} Bc8 {[%emt 0:09:39]} 18. Bf1 {[%emt 0:03:53]} Ng6 {[%emt 0:01:24]} 19. Qd2 {[%emt 0:03:09]} Bd4 {[%emt 0:11:04]} 20. Ne2 {[%emt 0:08:45]} Qf6 {[%emt 0:02:11]} 21. Nxd4 {[%emt 0:10:42]} cxd4 {[%emt 0:01:35]} 22. Ng4 {[%emt 0:03:18]} Qg7 {[%emt 0:00:41]} 23. e5 {[%emt 0:00:22]} exd5 {[%emt 0:19:39]} 24. exd6 {[%emt 0:00:37]} dxc4 {[%emt 0:00:50]} 25. Bxc4 {[%emt 0:01:20]} h5 {[%emt 0:01:33]} 26. Ne5 {[%emt 0:00:32]} Nxd6 {[%emt 0:00:10]} 27. Bd5 {[%emt 0:00:21]} Ra7 {[%emt 0:00:51]} 28. Qxg5 {[%emt 0:03:09]} Nf5 {[%emt 0:00:40]} 29. Qxg6 {[%emt 0:01:05]} Ra8 {[%emt 0:01:19]} 1-0

[Event "World Senior chT-50 2019"]
[Site "Rhodes"]
[Date "2019.04.21"]
[Round "6.35"]
[White "Ungure, Liga"]
[Black "Neave, George"]
[Result "0-1"]
[ECO "B31"]
[WhiteElo "1930"]
[BlackElo "2101"]
[Annotator "NA"]
[PlyCount "78"]
[EventDate "2019.04.16"]
[EventType "team-tourn"]
[EventCountry "GRE"]
[SourceTitle "playchess.com"]
[Source "ChessBase"]
[SourceQuality "1"]
[WhiteTeam "Latvia"]
[BlackTeam "Scotland"]
[WhiteTeamCountry "LAT"]
[BlackTeamCountry "SCO"]
[TimeControl "40/5400+30:1800+30"]

1. e4 {[%emt 0:00:00]} c5 {[%emt 0:01:59]} 2. Nf3 {[%emt 0:00:00]} Nc6 {[%emt 0:00:09]} 3. Bb5 {[%emt 0:00:04]} g6 {[%emt 0:00:09]} 4. O-O {[%emt 0:00:41]} Bg7 {[%emt 0:00:05]} 5. c3 {[%emt 0:00:48]} Nf6 {[%emt 0:02:38]} 6. Qe2 {[%emt 0:01:03]} O-O {[%emt 0:01:07]} 7. d4 {[%emt 0:02:09]} cxd4 {[%emt 0:06:52]} 8. cxd4 {[%emt 0:00:23]} d5 {[%emt 0:01:20]} 9. e5 {[%emt 0:01:17]} Ne4 {[%emt 0:03:04]} 10. Rd1 {[%emt 0:07:14]} f6 {[%emt 0:01:32]} 11. Nc3 {[%emt 0:06:47]} fxe5 {[%emt 0:06:41]} 12. Nxd5 {[%emt 0:02:00]} e6 {[%emt 0:20:01]} 13. dxe5 {[%emt 0:11:49]} exd5 {[%emt 0:00:41]} 14. Rxd5 {[%emt 0:01:20]} Qxd5 {[%emt 0:07:31]} 15. Bc4 {[%emt 0:00:07]} Be6 {[%emt 0:00:04]} 16. Bxd5 {[%emt 0:02:02]} Bxd5 {[%emt 0:00:06]} 17. Be3 {[%emt 0:15:17]} Nxe5 {[%emt 0:01:01]} 18. Nxe5 {[%emt 0:13:18]} Bxe5 {[%emt 0:00:06]} 19. f3 {[%emt 0:02:40]} Nf6 {[%emt 0:00:54]} 20. Qb5 {[%emt 0:08:20]} Rfe8 {[%emt 0:01:57]} 21. Rd1 {[%emt 0:00:46]} a6 {[%emt 0:01:46]} 22. Qa5 {[%emt 0:01:44]} Bc6 {[%emt 0:00:42]} 23. Bc1 {[%emt 0:02:15]} Rac8 {[%emt 0:01:53]} 24. b3 {[%emt 0:02:32]} Bb5 {[%emt 0:05:14]} 25. Bh6 {[%emt 0:01:06]} Nh5 {[%emt 0:04:43]} 26. a4 {[%emt 0:00:30]} Bc6 {[%emt 0:01:12]} 27. Qb4 {[%emt 0:04:42]} Ng7 {[%emt 0:03:17]} 28. Kf2 {[%emt 0:02:55]} Nf5 {[%emt 0:01:22]} 29. Qc4+ {[%emt 0:01:08]} Kh8 {[%emt 0:00:19]} 30. Bf4 {[%emt 0:00:35]} Bg7 {[%emt 0:00:34]} 31. Qb4 {[%emt 0:00:50]} Rcd8 {[%emt 0:00:43]} 32. Rxd8 {[%emt 0:00:29]} Rxd8 {[%emt 0:00:04]} 33. Qa5 {[%emt 0:01:22]} Re8 {[%emt 0:00:57]} 34. b4 {[%emt 0:00:47]} h5 {[%emt 0:04:07]} 35. b5 {[%emt 0:00:22]} Bd5 {[%emt 0:03:38]} 36. g4 {[%emt 0:00:22]} Bd4+ {[%emt 0:00:36]} 37. Kg2 {[%emt 0:00:50]} hxg4 {[%emt 0:00:15]} 38. bxa6 {[%emt 0:00:49]} gxf3+ {[%emt 0:05:18]} 39. Kh3 {[%emt 0:00:11]} f2 {[%emt 0:00:22]} 0-1

[Event "World Senior chT-50 2019"]
[Site "Rhodes"]
[Date "2019.04.21"]
[Round "6.36"]
[White "Smith, Peter R"]
[Black "Harlinska, Sandra"]
[Result "1-0"]
[ECO "A16"]
[WhiteElo "2038"]
[BlackElo "1833"]
[Annotator "NA"]
[PlyCount "47"]
[EventDate "2019.04.16"]
[EventType "team-tourn"]
[EventCountry "GRE"]
[SourceTitle "playchess.com"]
[Source "ChessBase"]
[SourceQuality "1"]
[WhiteTeam "Scotland"]
[BlackTeam "Latvia"]
[WhiteTeamCountry "SCO"]
[BlackTeamCountry "LAT"]
[TimeControl "40/5400+30:1800+30"]

1. Nf3 {[%emt 0:00:00]} g6 {[%emt 0:00:00]} 2. c4 {[%emt 0:00:00]} Bg7 {[%emt 0:00:33]} 3. Nc3 {[%emt 0:00:13]} Nf6 {[%emt 0:00:31]} 4. g3 {[%emt 0:00:17]} d5 {[%emt 0:02:05]} 5. cxd5 {[%emt 0:00:28]} Nxd5 {[%emt 0:00:07]} 6. Bg2 {[%emt 0:00:15]} O-O {[%emt 0:03:14]} 7. O-O {[%emt 0:00:15]} c6 {[%emt 0:06:29]} 8. e4 {[%emt 0:08:34]} Nxc3 {[%emt 0:03:41]} 9. bxc3 {[%emt 0:02:07]} Re8 {[%emt 0:22:47]} 10. e5 {[%emt 0:13:27]} Bg4 {[%emt 0:11:15]} 11. Qb3 {[%emt 0:07:53]} Qb6 {[%emt 0:01:18]} 12. d4 {[%emt 0:01:14]} Be6 {[%emt 0:08:30]} 13. c4 {[%emt 0:11:51]} Qa6 {[%emt 0:03:59]} 14. d5 {[%emt 0:02:43]} Bd7 {[%emt 0:02:38]} 15. Bf4 {[%emt 0:09:07]} cxd5 {[%emt 0:06:23]} 16. cxd5 {[%emt 0:00:18]} e6 {[%emt 0:00:35]} 17. d6 {[%emt 0:12:02]} f6 {[%emt 0:00:44]} 18. exf6 {[%emt 0:07:03]} Bxf6 {[%emt 0:00:08]} 19. Be5 {[%emt 0:00:49]} Bxe5 {[%emt 0:02:20]} 20. Nxe5 {[%emt 0:00:02]} Qxd6 {[%emt 0:00:40]} 21. Qxb7 {[%emt 0:03:32]} Qxe5 {[%emt 0:08:18]} 22. Qxa8 {[%emt 0:00:08]} Nc6 {[%emt 0:00:13]} 23. Qb7 {[%emt 0:00:27]} Rb8 {[%emt 0:00:33]} 24. Qxd7 {[%emt 0:00:41]} 1-0

[Event "World Senior chT-50 2019"]
[Site "Rhodes"]
[Date "2019.04.21"]
[Round "6.37"]
[White "Delaney, John"]
[Black "Burchardt, Brigitte"]
[Result "1-0"]
[ECO "B94"]
[WhiteElo "2156"]
[BlackElo "2136"]
[Annotator "NA"]
[PlyCount "97"]
[EventDate "2019.04.16"]
[EventType "team-tourn"]
[EventCountry "GRE"]
[SourceTitle "playchess.com"]
[Source "ChessBase"]
[SourceQuality "1"]
[WhiteTeam "Ireland"]
[BlackTeam "Germany"]
[WhiteTeamCountry "IRL"]
[BlackTeamCountry "GER"]
[TimeControl "40/5400+30:1800+30"]

1. e4 {[%emt 0:00:00]} c5 {[%emt 0:00:00]} 2. Nf3 {[%emt 0:00:00]} d6 {[%emt 0:00:00]} 3. d4 {[%emt 0:00:08]} cxd4 {[%emt 0:00:00]} 4. Nxd4 {[%emt 0:00:07]} Nf6 {[%emt 0:00:00]} 5. Nc3 {[%emt 0:00:18]} a6 {[%emt 0:00:00]} 6. Bg5 {[%emt 0:00:41]} Nbd7 {[%emt 0:00:55]} 7. f4 {[%emt 0:02:33]} Qc7 {[%emt 0:09:24]} 8. Qf3 {[%emt 0:05:30]} g6 {[%emt 0:07:10]} 9. O-O-O {[%emt 0:15:27]} Bg7 {[%emt 0:01:54]} 10. Be2 {[%emt 0:08:46]} Nb6 {[%emt 0:07:36]} 11. Qg3 {[%emt 0:06:24]} h6 {[%emt 0:04:07]} 12. Bh4 {[%emt 0:01:42]} O-O {[%emt 0:09:06]} 13. Rhf1 {[%emt 0:03:36]} Nh7 {[%emt 0:01:24]} 14. Qe3 {[%emt 0:02:20]} Re8 {[%emt 0:08:11]} 15. Bg3 {[%emt 0:02:24]} Bd7 {[%emt 0:01:21]} 16. f5 {[%emt 0:01:29]} g5 {[%emt 0:00:43]} 17. Nd5 {[%emt 0:10:39]} Nxd5 {[%emt 0:05:07]} 18. exd5 {[%emt 0:00:11]} Qa5 {[%emt 0:00:35]} 19. Kb1 {[%emt 0:01:49]} Rac8 {[%emt 0:02:58]} 20. h4 {[%emt 0:02:58]} Nf6 {[%emt 0:14:49]} 21. Nb3 {[%emt 0:03:27]} Qc7 {[%emt 0:06:19]} 22. c3 {[%emt 0:01:42]} a5 {[%emt 0:02:05]} 23. hxg5 {[%emt 0:02:42]} hxg5 {[%emt 0:00:05]} 24. Nc1 {[%emt 0:02:24]} a4 {[%emt 0:00:58]} 25. a3 {[%emt 0:00:12]} Qa5 {[%emt 0:00:33]} 26. c4 {[%emt 0:03:57]} b5 {[%emt 0:01:18]} 27. Be1 {[%emt 0:01:02]} Qc7 {[%emt 0:00:44]} 28. Bc3 {[%emt 0:00:33]} Nh7 {[%emt 0:03:57]} 29. Bxg7 {[%emt 0:02:38]} Kxg7 {[%emt 0:00:04]} 30. Qd4+ {[%emt 0:01:39]} f6 {[%emt 0:02:47]} 31. g4 {[%emt 0:00:34]} bxc4 {[%emt 0:01:27]} 32. Na2 {[%emt 0:01:24]} Qb7 {[%emt 0:04:33]} 33. Rf3 {[%emt 0:02:41]} Rc5 {[%emt 0:00:48]} 34. Nb4 {[%emt 0:00:28]} Bb5 {[%emt 0:00:44]} 35. Qc3 {[%emt 0:01:35]} Rh8 {[%emt 0:02:31]} 36. Rh3 {[%emt 0:00:41]} Nf8 {[%emt 0:00:31]} 37. Rxh8 {[%emt 0:04:52]} Kxh8 {[%emt 0:00:06]} 38. Rh1+ {[%emt 0:00:49]} Kg7 {[%emt 0:00:03]} 39. Rh5 {[%emt 0:01:22]} Be8 {[%emt 0:00:51]} 40. Rxg5+ {[%emt 0:00:00]} Kh8 {[%emt 0:00:00]} 41. Qh3+ {[%emt 0:06:32]} Nh7 {[%emt 0:03:38]} 42. Rg6 {[%emt 0:00:24]} e6 {[%emt 0:08:26]} 43. Rxf6 {[%emt 0:02:04]} Qg7 {[%emt 0:02:17]} 44. Rxe6 {[%emt 0:01:50]} Bf7 {[%emt 0:00:09]} 45. Re3 {[%emt 0:02:28]} Qd4 {[%emt 0:05:25]} 46. g5 {[%emt 0:01:37]} Kg7 {[%emt 0:07:33]} 47. f6+ {[%emt 0:01:36]} Nxf6 {[%emt 0:01:09]} 48. Qh6+ {[%emt 0:00:21]} Kg8 {[%emt 0:00:06]} 49. gxf6 {[%emt 0:00:17]} 1-0

[Event "World Senior chT-50 2019"]
[Site "Rhodes"]
[Date "2019.04.21"]
[Round "6.38"]
[White "Wagner-Michel, Annett"]
[Black "Wallace, Paul"]
[Result "0-1"]
[ECO "C45"]
[WhiteElo "2056"]
[BlackElo "2152"]
[Annotator "NA"]
[PlyCount "166"]
[EventDate "2019.04.16"]
[EventType "team-tourn"]
[EventCountry "GRE"]
[SourceTitle "playchess.com"]
[Source "ChessBase"]
[SourceQuality "1"]
[WhiteTeam "Germany"]
[BlackTeam "Ireland"]
[WhiteTeamCountry "GER"]
[BlackTeamCountry "AUS"]
[TimeControl "40/5400+30:1800+30"]

1. e4 {[%emt 0:00:00]} e5 {[%emt 0:00:00]} 2. Nf3 {[%emt 0:00:00]} Nc6 {[%emt 0:00:00]} 3. d4 {[%emt 0:00:00]} exd4 {[%emt 0:00:00]} 4. Nxd4 {[%emt 0:00:00]} Bc5 {[%emt 0:00:03]} 5. Nb3 {[%emt 0:00:44]} Bb4+ {[%emt 0:01:21]} 6. c3 {[%emt 0:01:11]} Be7 {[%emt 0:00:14]} 7. Bf4 {[%emt 0:06:21]} Bg5 {[%emt 0:06:09]} 8. Bg3 {[%emt 0:04:41]} h5 {[%emt 0:09:44]} 9. h4 {[%emt 0:02:59]} Bh6 {[%emt 0:02:19]} 10. Nd4 {[%emt 0:14:44]} Nf6 {[%emt 0:09:25]} 11. Bd3 {[%emt 0:05:08]} d6 {[%emt 0:13:11]} 12. Nxc6 {[%emt 0:02:42]} bxc6 {[%emt 0:00:05]} 13. O-O {[%emt 0:00:36]} Ng4 {[%emt 0:02:37]} 14. Na3 {[%emt 0:11:33]} O-O {[%emt 0:00:14]} 15. Nc2 {[%emt 0:01:22]} Rb8 {[%emt 0:05:41]} 16. b3 {[%emt 0:02:42]} Qf6 {[%emt 0:02:28]} 17. Qe1 {[%emt 0:05:08]} Re8 {[%emt 0:00:36]} 18. f4 {[%emt 0:01:52]} Bf5 {[%emt 0:07:29]} 19. e5 {[%emt 0:08:04]} Bxd3 {[%emt 0:01:17]} 20. exf6 {[%emt 0:03:46]} Rxe1 {[%emt 0:00:15]} 21. Nxe1 {[%emt 0:00:36]} Bxf1 {[%emt 0:00:09]} 22. Kxf1 {[%emt 0:00:13]} Nxf6 {[%emt 0:00:09]} 23. c4 {[%emt 0:03:32]} Re8 {[%emt 0:03:36]} 24. Nf3 {[%emt 0:03:33]} Ne4 {[%emt 0:08:28]} 25. Bh2 {[%emt 0:00:50]} g6 {[%emt 0:00:40]} 26. Rd1 {[%emt 0:04:15]} c5 {[%emt 0:03:51]} 27. Ng5 {[%emt 0:03:34]} f5 {[%emt 0:01:39]} 28. Nxe4 {[%emt 0:01:03]} Rxe4 {[%emt 0:00:09]} 29. g3 {[%emt 0:00:28]} Bg7 {[%emt 0:00:15]} 30. Bg1 {[%emt 0:00:47]} Kf7 {[%emt 0:04:43]} 31. Bf2 {[%emt 0:01:08]} Ke6 {[%emt 0:00:34]} 32. Rd2 {[%emt 0:02:50]} Bd4 {[%emt 0:09:12]} 33. Rc2 {[%emt 0:00:59]} c6 {[%emt 0:01:44]} 34. Rd2 {[%emt 0:01:48]} Bxf2 {[%emt 0:01:31]} 35. Kxf2 {[%emt 0:00:07]} d5 {[%emt 0:00:08]} 36. Rc2 {[%emt 0:00:17]} Kd6 {[%emt 0:00:19]} 37. Rd2 {[%emt 0:00:36]} d4 {[%emt 0:05:04]} 38. Rd3 {[%emt 0:03:59]} Kc7 {[%emt 0:00:04]} 39. Rf3 {[%emt 0:00:26]} Kb6 {[%emt 0:00:15]} 40. Rd3 {[%emt 0:00:00]} Ka5 {[%emt 0:00:00]} 41. a3 {[%emt 0:00:49]} Re7 {[%emt 0:02:07]} 42. Rf3 {[%emt 0:01:03]} Kb6 {[%emt 0:01:34]} 43. Rd3 {[%emt 0:00:24]} Rd7 {[%emt 0:04:47]} 44. Ke2 {[%emt 0:00:19]} Re7+ {[%emt 0:00:41]} 45. Kf2 {[%emt 0:01:58]} a5 {[%emt 0:00:42]} 46. a4 {[%emt 0:00:15]} Re4 {[%emt 0:00:06]} 47. Rf3 {[%emt 0:00:27]} Kc7 {[%emt 0:00:06]} 48. Rd3 {[%emt 0:00:23]} Kd6 {[%emt 0:00:08]} 49. Rf3 {[%emt 0:00:14]} Ke6 {[%emt 0:00:25]} 50. Rd3 {[%emt 0:00:27]} g5 {[%emt 0:10:51]} 51. hxg5 {[%emt 0:02:25]} h4 {[%emt 0:00:05]} 52. Kg2 {[%emt 0:02:07]} Kf7 {[%emt 0:02:02]} 53. Rf3 {[%emt 0:06:42]} Re2+ {[%emt 0:04:29]} 54. Kh3 {[%emt 0:01:18]} Re3 {[%emt 0:00:55]} 55. Rf1 {[%emt 0:05:14]} hxg3 {[%emt 0:00:06]} 56. Kg2 {[%emt 0:01:51]} d3 {[%emt 0:06:37]} 57. Rd1 {[%emt 0:06:18]} Kg6 {[%emt 0:01:55]} 58. Rh1 {[%emt 0:05:11]} d2 {[%emt 0:03:22]} 59. Rh6+ {[%emt 0:00:59]} Kg7 {[%emt 0:00:11]} 60. Rd6 {[%emt 0:00:04]} Re4 {[%emt 0:00:07]} 61. Rxd2 {[%emt 0:00:53]} Rxf4 {[%emt 0:00:04]} 62. Kxg3 {[%emt 0:00:27]} Rd4 {[%emt 0:02:03]} 63. Re2 {[%emt 0:00:57]} Kg6 {[%emt 0:00:11]} 64. Re6+ {[%emt 0:00:45]} Kxg5 {[%emt 0:00:05]} 65. Rxc6 {[%emt 0:00:10]} Rd3+ {[%emt 0:00:08]} 66. Kf2 {[%emt 0:00:39]} Rxb3 {[%emt 0:00:07]} 67. Rxc5 {[%emt 0:00:14]} Rb4 {[%emt 0:01:36]} 68. Rxa5 {[%emt 0:00:33]} Rxc4 {[%emt 0:00:05]} 69. Re5 {[%emt 0:01:53]} Kf4 {[%emt 0:02:08]} 70. Re2 {[%emt 0:00:16]} Rxa4 {[%emt 0:00:06]} 71. Rb2 {[%emt 0:00:07]} Kg4 {[%emt 0:00:12]} 72. Rc2 {[%emt 0:00:27]} f4 {[%emt 0:00:13]} 73. Rb2 {[%emt 0:00:15]} Ra3 {[%emt 0:00:08]} 74. Kg2 {[%emt 0:00:35]} Rg3+ {[%emt 0:00:10]} 75. Kf2 {[%emt 0:00:17]} Rh3 {[%emt 0:00:36]} 76. Kg2 {[%emt 0:00:47]} f3+ {[%emt 0:00:34]} 77. Kg1 {[%emt 0:00:14]} Kg3 {[%emt 0:00:21]} 78. Rc2 {[%emt 0:01:39]} Rh8 {[%emt 0:00:21]} 79. Rb2 {[%emt 0:01:04]} Ra8 {[%emt 0:00:27]} 80. Rb1 {[%emt 0:00:25]} Ra2 {[%emt 0:00:18]} 81. Rf1 {[%emt 0:01:18]} Rg2+ {[%emt 0:00:18]} 82. Kh1 {[%emt 0:00:00]} Rh2+ {[%emt 0:00:09]} 83. Kg1 {[%emt 0:00:06]} f2+ {[%emt 0:00:08]} 0-1